fUST/lending_fUST_20240213
["ID","MTS","AMOUNT","RATE_DAILY","PERIOD"]
[313901884,1707792646967,-1875.41139146,0.00031678,4]
[313901885,1707792646977,-620.05619572,0.00031739,2]
[313901886,1707792646986,-500.0,0.00031835,2]
[313901887,1707792646996,-155.07641648,0.00031838,4]
[313901888,1707792647007,-210.13553923,0.000319,3]
[313901889,1707792647017,-3527.72767316,0.000319,3]
[313901890,1707792751630,-500.0,0.00027397,2]
[313901891,1707792751651,-569.09,0.00027671,2]
[313901892,1707792751673,-154.95351395,0.00027998,4]
[313901893,1707792751694,-500.0,0.00027999,2]
[313901894,1707792751714,-510.39299438,0.00027999,2]
[313901895,1707792751737,-538.148062,0.00027999,2]
[313901896,1707792751758,-500.0,0.00027999,2]
[313901897,1707792751778,-5220.31591063,0.00028,20]
[313901898,1707792751802,-500.0,0.00028217,2]
[313901899,1707792751823,-584.13,0.00028273,2]
[313901900,1707792751847,-500.0,0.00028491,2]
[313901901,1707792751870,-500.0,0.00028765,2]
[313901902,1707792751890,-303.7557167,0.00029,3]
[313901903,1707792751913,-500.0,0.00029039,2]
[313901904,1707792751934,-500.0,0.00029313,2]
[313901905,1707792751955,-223.0,0.00029587,2]
[313901906,1707792751977,-8242.60049332,0.0002975,2]
[313901907,1707792751997,-3343.77753188,0.0003,2]
[313901908,1707793153410,1577.0,0.0003615,120]
[313901966,1707793837948,-154.93802479,0.00023335,4]
[313901967,1707793837958,-425.34702763,0.00023336,2]
[313901968,1707793837968,-7387.8992962,0.00025788,2]
[313901974,1707793841018,-335.8381133,0.00025787,2]
[313901975,1707793841028,-24.84771728,0.00025788,2]
[313901976,1707793841037,-2709.19335112,0.00025789,2]
[313901977,1707793841074,-7379.2,0.00025789,2]
[313901984,1707793842940,-1095.03121266,0.00025789,2]
[313901985,1707793842996,-4708.3304404,0.00025789,2]
[313901986,1707793843007,-416.37999994,0.00025789,2]
[313901989,1707793845923,-4683.44327108,0.00025789,2]
[313901990,1707793845934,-280.70858126,0.00026999,2]
[313901991,1707793845943,-2147.06900958,0.00027,2]
[313902046,1707795032037,-154.93802479,0.00023325,4]
[313902049,1707795032049,-156.32029139,0.00023326,3]
[313902052,1707795032060,-210.0,0.00023343,3]
[313902055,1707795032070,-157.34504434,0.00023689,2]
[313902057,1707795032080,-280.70858126,0.0002636,2]
[313902059,1707795032089,-7412.74701348,0.00026361,2]
[313902061,1707795032098,-24900.0,0.00026362,2]
[313902063,1707795032107,-154.93802479,0.00027,2]
[313902064,1707795032117,-300.0,0.00027,2]
[313902066,1707795032127,-766.53439085,0.00027,2]
[313902067,1707795032136,-1833.23081088,0.00027,2]
[313902068,1707795032146,-3062.904902,0.00027997,2]
[313902070,1707795032156,-895.27908639,0.00027998,2]
[313902072,1707795032166,-500.0,0.00027998,2]
[313902073,1707795032175,-2049.9203416,0.00028,2]
[313902074,1707795032185,-1717.3410849,0.00028271,2]
[313902075,1707795032194,-569.09,0.00028272,2]
[313902076,1707795032204,-500.0,0.00028499,2]
[313902077,1707795032214,-500.0,0.00028499,2]
[313902078,1707795032225,-500.0,0.00028499,2]
[313902080,1707795032235,-291.13572593,0.00028499,2]
[313902081,1707795032245,-504.87668549,0.00028499,2]
[313902082,1707795032254,-301.39,0.00028499,2]
[313902083,1707795032263,-500.0,0.00028499,2]
[313902084,1707795032272,-500.0,0.00028499,2]
[313902085,1707795032281,-500.0,0.00028499,2]
[313902086,1707795032291,-500.0,0.00028499,2]
[313902087,1707795032300,-500.0,0.00028499,2]
[313902088,1707795032309,-16289.80790715,0.000285,2]
[313902089,1707795032318,-3887.35,0.00028525,3]
[313902090,1707795032327,-4664.82,0.00028535,3]
[313902091,1707795032336,-500.0,0.00028545,2]
[313902092,1707795032346,-507.68334626,0.00028545,2]
[313902093,1707795032354,-500.0,0.00028545,2]
[313902094,1707795032363,-510.39299438,0.00028545,2]
[313902095,1707795032372,-538.148062,0.00028545,2]
[313902096,1707795032380,-295.62860647,0.00028545,2]
[313902153,1707795041912,-280.70858126,0.00026,2]
[313902154,1707795041922,-500.0,0.00028499,2]
[313902155,1707795041931,-279.78555172,0.00028499,2]
[313902156,1707795041944,-220.21444828,0.00028499,2]
[313902157,1707795041954,-204.37139353,0.00028545,2]
[313902158,1707795041968,-440.16405819,0.00028545,2]
[313902608,1707795628038,5329.0,0.0003615,120]
[313902612,1707795678254,3000.23050597,0.0003615,120]
[313902614,1707795734690,3000.0,0.0003614,120]
[313902615,1707795763759,1643.76949403,0.0003614,120]
[313902677,1707796232212,-2608.46910477,0.00026268,2]
[313902678,1707796232222,-1588.23318982,0.00026269,2]
[313902679,1707796232233,-154.93802479,0.00026269,4]
[313902680,1707796232242,-1949.02119926,0.0002627,2]
[313902681,1707796232252,-19938.19043779,0.0002627,2]
[313902682,1707796232263,-524.12099698,0.00026271,2]
[313902683,1707796232273,-454.78953434,0.00026271,2]
[313902684,1707796232282,-296.0451629,0.00026272,2]
[313902685,1707796232291,-593.84417561,0.00026391,2]
[313902686,1707796232301,-150.0,0.00026445,2]
[313902687,1707796232310,-864.7499,0.00027049,2]
[313902689,1707796232320,-300.0,0.000278,13]
[313902691,1707796232329,-503.18828215,0.00027997,2]
[313902693,1707796232339,-504.68560158,0.00027997,2]
[313902694,1707796232349,-586.77940898,0.00027997,2]
[313902695,1707796232362,-500.2722671,0.00027997,2]
[313902696,1707796232371,-155.7863167,0.00027997,2]
[313902697,1707796232380,-584.66193494,0.00027997,2]
[313902698,1707796232390,-298.36493672,0.00027997,2]
[313902699,1707796232400,-502.27561213,0.00027997,2]
[313902700,1707796232410,-500.0,0.00027997,2]
[313902701,1707796232419,-500.0,0.00027997,2]
[313902702,1707796232429,-185.60650716,0.00027997,2]
[313902703,1707796232438,-502.90265428,0.00027997,2]
[313902704,1707796232448,-500.0,0.00027997,2]
[313902705,1707796232457,-500.0,0.00027997,2]
[313902706,1707796232467,-233.34023544,0.00027997,2]
[313902707,1707796232476,-504.99511948,0.00027997,2]
[313902708,1707796232485,-505.52942716,0.00027997,2]
[313902709,1707796232494,-1717.3410849,0.00028269,2]
[313902710,1707796232504,-500.0,0.0002827,2]
[313902711,1707796232513,-176.40565675,0.0002827,2]
[313902712,1707796232522,-500.0,0.00028271,2]
[313902713,1707796232531,-500.0,0.00028271,2]
[313902714,1707796232541,-500.0,0.00028271,2]
[313902715,1707796232550,-500.0,0.00028497,2]
[313902716,1707796232560,-500.0,0.00028497,2]
[313902717,1707796232569,-500.0,0.00028497,2]
[313902718,1707796232578,-500.0,0.00028497,2]
[313902719,1707796232587,-500.0,0.00028497,2]
[313902720,1707796232597,-500.0,0.00028498,2]
[313902721,1707796232606,-514.78661559,0.00028498,2]
[313902722,1707796232615,-510.98227918,0.00028498,2]
[313902723,1707796232624,-191.78,0.00028498,2]
[313902724,1707796232633,-584.13,0.00028498,2]
[313902725,1707796232642,-500.0,0.00028498,2]
[313902726,1707796232651,-506.56414411,0.00028498,2]
[313902727,1707796232660,-500.0,0.00028498,2]
[313902728,1707796232669,-501.268701,0.00028499,2]
[313902729,1707796232678,-215.7,0.00028544,2]
[313902730,1707796232688,-392.42420271,0.00028545,2]
[313902731,1707796232697,-500.0,0.00028545,2]
[313902732,1707796232706,-500.0,0.00028545,2]
[313902733,1707796232715,-500.0,0.00028771,2]
[313902734,1707796232724,-189.86,0.00028771,2]
[313902735,1707796232734,-500.0,0.00028771,2]
[313902736,1707796232743,-500.0,0.00028772,2]
[313902737,1707796232752,-500.0,0.00028772,2]
[313902738,1707796232761,-500.0,0.00028772,2]
[313902739,1707796232770,-766.67721383,0.00028798,5]
[313902740,1707796232779,-500.0,0.00028819,2]
[313902741,1707796232788,-500.0,0.00028819,2]
[313902742,1707796232797,-326.6418889,0.00028822,2]
[313902743,1707796232807,-200.0,0.000289,15]
[313902744,1707796232816,-303.7557167,0.00029,3]
[313902745,1707796232825,-183.4562463,0.00029018,10]
[313902746,1707796232834,-500.0,0.00029045,2]
[313902747,1707796232844,-622.66,0.00029045,2]
[313902748,1707796232854,-568.28,0.00029046,2]
[313902749,1707796232863,-500.0,0.00029046,2]
[313902750,1707796232873,-500.0,0.00029046,2]
[313902751,1707796232882,-500.0,0.00029093,2]
[313902752,1707796232892,-156.39474609,0.00029093,2]
[313902753,1707796232901,-500.0,0.00029319,2]
[313902754,1707796232911,-500.0,0.0002932,2]
[313902755,1707796232920,-500.0,0.0002932,2]
[313902756,1707796232930,-495.4,0.00029367,2]
[313902757,1707796232940,-223.0,0.00029593,2]
[313902758,1707796232949,-294.37,0.00029594,2]
[313902759,1707796232958,-445.72,0.00029594,2]
[313902760,1707796232968,-262.424629,0.000298,2]
[313902761,1707796232977,-3343.77753188,0.0003,2]
[313902762,1707796232987,-154.94425386,0.0003,7]
[313902763,1707796232997,-260.0,0.0003,2]
[313902764,1707796233006,-349.91251855,0.0003,4]
[313902765,1707796233016,-1950.45781889,0.0003,4]
[313902766,1707796233025,-504.40570818,0.0003,14]
[313902767,1707796233034,-154.93802479,0.00030135,4]
[313902768,1707796233044,-917.36773054,0.00030136,4]
[313902769,1707796233053,-153.0,0.00030137,2]
[313902770,1707796233062,-153.0,0.00030438,2]
[313902771,1707796233071,-153.0,0.00030986,2]
[313902772,1707796233081,-155.0,0.00030999,2]
[313902773,1707796233090,-154.95351395,0.00031,4]
[313902774,1707796233100,-150.0,0.00031445,2]
[313902775,1707796233111,-3089.74,0.00031628,3]
[313902776,1707796233120,-3707.69,0.00031638,3]
[313902777,1707796233129,-2353.03,0.00031648,3]
[313902778,1707796233139,-4066.03,0.00031658,3]
[313902779,1707796233149,-3332.49904288,0.00031678,4]
[313902780,1707796233159,-19197.93316642,0.00031678,4]
[313902781,1707796233169,-280.0,0.0003179,15]
[313902782,1707796233178,-1094.84429819,0.00031898,2]
[313902809,1707796238219,-1526.11327591,0.00028,2]
[313902811,1707796238334,-191.22780899,0.00028,2]
[313902812,1707796238345,-7147.75619513,0.00031898,2]
[313902813,1707796238356,-1596.09202158,0.000319,3]
[313902814,1707796238365,-158.37621417,0.000319,2]
[313902815,1707796238375,-203.0,0.0003197,35]
[313902816,1707796238385,-150.5,0.0003197,35]
[313902817,1707796238395,-176.0,0.0003197,35]
[313902818,1707796238404,-171.0,0.0003197,35]
[313902819,1707796238414,-205.0,0.0003197,35]
[313902820,1707796238425,-1134.0,0.0003197,35]
[313902821,1707796238436,-257.0,0.0003197,35]
[313902822,1707796238446,-203.0,0.0003198,35]
[313902823,1707796238456,-150.5,0.0003198,35]
[313902824,1707796238465,-176.0,0.0003198,35]
[313902825,1707796238474,-171.0,0.0003198,35]
[313902826,1707796238484,-205.0,0.0003198,35]
[313902827,1707796238493,-1134.0,0.0003198,35]
[313902828,1707796238502,-257.0,0.0003198,35]
[313902829,1707796238512,-203.0,0.0003199,35]
[313902830,1707796238521,-150.5,0.0003199,35]
[313902831,1707796238530,-176.0,0.0003199,35]
[313902832,1707796238540,-171.0,0.0003199,35]
[313902833,1707796238550,-205.0,0.0003199,35]
[313902834,1707796238559,-1134.0,0.0003199,35]
[313902835,1707796238570,-257.0,0.0003199,35]
[313902836,1707796238580,-213.45121518,0.00031998,4]
[313902837,1707796238589,-15604.75838618,0.00031998,4]
[313902838,1707796238599,-247.81323883,0.00031998,4]
[313902839,1707796238609,-640.71697919,0.00031998,4]
[313902840,1707796238619,-204.71994651,0.00031998,4]
[313902841,1707796238629,-330.63590163,0.00031998,4]
[313902842,1707796238639,-1743.43173262,0.00031998,4]
[313902843,1707796238649,-579.75182446,0.00031998,4]
[313902844,1707796238658,-155.08930455,0.00031998,4]
[313902845,1707796238667,-155.08290081,0.00031998,4]
[313902846,1707796238676,-158.03130822,0.00031998,4]
[313902847,1707796238685,-719.93343173,0.00031998,4]
[313902848,1707796238695,-1903.32347967,0.00031998,4]
[313902849,1707796238705,-155.55533447,0.00031998,4]
[313902850,1707796238714,-259.73359302,0.00031998,4]
[313902851,1707796238724,-155.57206072,0.00031998,4]
[313902852,1707796238733,-155.06142957,0.00031998,4]
[313902853,1707796238743,-241.69488335,0.00031998,4]
[313902854,1707796238752,-155.4779881,0.00031998,4]
[313902855,1707796238763,-155.19254407,0.00031998,4]
[313902856,1707796238772,-173.57196152,0.00031998,4]
[313902857,1707796238872,-177.9923199,0.00031998,4]
[313902858,1707796238899,-247.61411653,0.00031998,4]
[313902859,1707796238909,-155.19358779,0.00031998,4]
[313902860,1707796238919,-225.75353995,0.00031998,4]
[313902861,1707796238928,-214.80726109,0.00031998,4]
[313902862,1707796238937,-1200.94174041,0.00031998,4]
[313902863,1707796238947,-163.5845355,0.00031998,4]
[313902864,1707796238956,-170.4078293,0.00031998,4]
[313902865,1707796238966,-271.11197704,0.00031998,4]
[313902866,1707796238976,-155.42768064,0.00031998,4]
[313902867,1707796238985,-1142.71503412,0.00031998,4]
[313902868,1707796238995,-325.00734367,0.00031998,4]
[313902869,1707796239004,-155.04705359,0.00031998,4]
[313902870,1707796239013,-685.0646949,0.00031998,4]
[313902871,1707796239021,-155.15463782,0.00031998,4]
[313902872,1707796239030,-155.13451743,0.00031998,4]
[313902873,1707796239039,-200.0,0.00031998,4]
[313902874,1707796239049,-271.30152739,0.00031998,4]
[313902875,1707796239059,-8001.21370708,0.00031998,2]
[313902876,1707796239069,-248.02048467,0.00031998,4]
[313902877,1707796239079,-907.82727435,0.00031998,4]
[313902878,1707796239088,-159.98961398,0.00031998,4]
[313902879,1707796239098,-201.56458815,0.00031998,4]
[313902880,1707796239108,-155.15413402,0.00031998,4]
[313902881,1707796239117,-557.46971783,0.00031998,4]
[313902882,1707796239127,-161.93288762,0.00031998,4]
[313902883,1707796239137,-154.95351395,0.00031998,2]
[313902884,1707796239147,-1321.1491288,0.00031998,4]
[313902885,1707796239157,-154.95351395,0.00031998,4]
[313902886,1707796239167,-5220.31591063,0.00031998,20]
[313902887,1707796239176,-154.94993373,0.00031998,4]
[313902888,1707796239186,-335.79085058,0.00031998,4]
[313902889,1707796239195,-3936.35917371,0.00031998,4]
[313902890,1707796239205,-1956.43191629,0.00031998,2]
[313902891,1707796239214,-6113.4447999,0.00031998,4]
[313902892,1707796239223,-323.95906858,0.00031998,4]
[313902893,1707796239232,-262.03286371,0.00031998,4]
[313902894,1707796239241,-1438.800854,0.00031998,4]
[313902895,1707796239251,-483.31236923,0.00031998,4]
[313902896,1707796239261,-214.2019474,0.00031998,4]
[313902897,1707796239270,-155.16823578,0.00031998,4]
[313902898,1707796239280,-680.65959231,0.00031998,4]
[313902899,1707796239289,-721.00253317,0.00031998,4]
[313902900,1707796239298,-155.44966176,0.00031998,4]
[313902901,1707796239308,-32163.46913521,0.00031999,4]
[313902902,1707796239317,-500.0,0.00031999,7]
[313902903,1707796239327,-500.0,0.00031999,7]
[313902904,1707796239337,-452.85825044,0.00031999,7]
[313902905,1707796239346,-182.75211119,0.00031999,7]
[313902906,1707796239358,-393.36399535,0.00031999,7]
[313902907,1707796239367,-493.86593004,0.00031999,7]
[313902908,1707796239376,-441.1623636,0.00031999,7]
[313902909,1707796239386,-202.67412506,0.00031999,7]
[313902910,1707796239396,-500.0,0.00031999,7]
[313902911,1707796239406,-500.0,0.00031999,7]
[313902912,1707796239415,-500.0,0.00031999,7]
[313902913,1707796239424,-500.0,0.00031999,7]
[313902914,1707796239434,-500.0,0.00031999,7]
[313902915,1707796239445,-500.0,0.00031999,7]
[313902916,1707796239455,-562.41023619,0.00031999,7]
[313902917,1707796239464,-500.0,0.00031999,7]
[313902918,1707796239473,-500.0,0.00031999,7]
[313902919,1707796239482,-500.0,0.00031999,7]
[313902920,1707796239491,-90775.18267898,0.00032,15]
[313902928,1707796241547,-998.46782728,0.00032,15]
[313902929,1707796241618,-150.5,0.0003199,35]
[313902930,1707796241627,-3032.08600186,0.00032,15]
[313902953,1707796243387,-150.5,0.0003197,35]
[313902954,1707796243396,-150.5,0.0003197,35]
[313902955,1707796243405,-150.5,0.0003197,35]
[313902956,1707796243414,-150.5,0.0003198,35]
[313902957,1707796243424,-150.5,0.0003198,35]
[313902958,1707796243433,-150.5,0.0003198,35]
[313902959,1707796243443,-150.5,0.0003199,35]
[313902960,1707796243452,-150.5,0.0003199,35]
[313902961,1707796243462,-524.98847428,0.00031999,4]
[313902962,1707796243470,-6245.6633578,0.00032,15]
[313902963,1707796243496,-3532.62261407,0.00032,15]
[313903044,1707796246308,-504.40570818,0.00031999,14]
[313903046,1707796246318,-455.59961642,0.00031999,4]
[313903048,1707796246327,-244.93876299,0.00031999,4]
[313903050,1707796246337,-46275.85520487,0.00032,15]
[313903208,1707797432338,-2561.43,0.00026628,3]
[313903210,1707797432348,-4386.1,0.00026628,3]
[313903212,1707797432357,-296.0451629,0.00026634,2]
[313903214,1707797432366,-154.93802479,0.00026634,2]
[313903216,1707797432376,-454.78953434,0.00026635,2]
[313903218,1707797432385,-1963.02059646,0.00026636,2]
[313903220,1707797432394,-154.93802479,0.00026636,4]
[313903222,1707797432403,-19938.19043779,0.00026636,2]
[313903224,1707797432412,-2608.46910477,0.00026637,2]
[313903226,1707797432421,-15495.26461402,0.00026638,2]
[313903228,1707797432434,-310.07907669,0.00026638,2]
[313903280,1707797438498,-68198.20101634,0.00026638,2]
[313903282,1707797438507,-169.886905,0.00026645,2]
[313903284,1707797438516,-163.34901771,0.00027567,2]
[313903286,1707797438526,-24900.0,0.00027667,2]
[313903288,1707797438535,-163.3490177,0.0002865,2]
[313903290,1707797438544,-984.09211278,0.00028798,2]
[313903292,1707797438553,-183.4562463,0.000293,10]
[313903294,1707797438562,-200.0,0.00029301,15]
[313903296,1707797438571,-163.3490177,0.00029734,2]
[313903298,1707797438581,-150.0,0.000299,2]
[313903300,1707797438590,-3343.77753188,0.0003,2]
[313903302,1707797438599,-239.0,0.0003,2]
[313903305,1707797438609,-1950.45781889,0.0003,4]
[313903308,1707797438618,-917.36773054,0.00030197,4]
[313903311,1707797438628,-504.40570818,0.00030197,14]
[313903314,1707797438637,-244.93876299,0.00030198,4]
[313903317,1707797438646,-154.93802479,0.00030198,4]
[313903319,1707797438655,-338.25708577,0.000302,3]
[313903321,1707797438664,-163.3490177,0.00030817,2]
[313903322,1707797438673,-155.0,0.000309,2]
[313903323,1707797438683,-154.93802479,0.00031,4]
[313903324,1707797438694,-3126.35189673,0.00031,2]
[313903325,1707797438704,-1015.36480083,0.00031038,10]
[313903326,1707797438713,-19148.7409661,0.00031678,4]
[313903327,1707797438723,-3274.9508,0.000319,30]
[313903328,1707797438732,-163.3490177,0.000319,2]
[313903329,1707797438741,-794.0,0.0003197,35]
[313903330,1707797438750,-150.5,0.0003197,35]
[313903331,1707797438760,-794.0,0.0003198,35]
[313903332,1707797438769,-150.5,0.0003198,35]
[313903333,1707797438779,-794.0,0.0003199,35]
[313903334,1707797438788,-150.5,0.0003199,35]
[313903335,1707797438798,-562.49002624,0.00031997,7]
[313903336,1707797438808,-1108.17028725,0.00031998,4]
[313903337,1707797438817,-214.2019474,0.00031998,4]
[313903338,1707797438826,-2831.42030992,0.00031998,4]
[313903339,1707797438835,-37088.22769886,0.00031998,4]
[313903340,1707797438844,-175.81661467,0.00031998,4]
[313903341,1707797438853,-161.61744964,0.00031998,4]
[313903342,1707797438863,-591.89702956,0.00031998,4]
[313903343,1707797438873,-155.27822806,0.00031998,4]
[313903344,1707797438882,-156.76937067,0.00031998,4]
[313903345,1707797438891,-2221.68754856,0.00031998,2]
[313903346,1707797438901,-360.72437226,0.00031998,4]
[313903347,1707797438910,-154.93802479,0.00031998,2]
[313903348,1707797438919,-277.34578662,0.00031998,4]
[313903349,1707797438930,-74.91242115,0.00031998,4]
[313903350,1707797439105,-238.38537478,0.00031998,4]
[313903351,1707797439117,-155.09094064,0.00031998,4]
[313903352,1707797439129,-155.30958796,0.00031998,4]
[313903353,1707797439139,-261.22503123,0.00031998,4]
[313903354,1707797439150,-247.40081509,0.00031998,4]
[313903355,1707797439159,-155.77633192,0.00031998,4]
[313903356,1707797439169,-718.5549009,0.00031998,4]
[313903357,1707797439178,-212.68940984,0.00031998,4]
[313903358,1707797439188,-402.74055441,0.00031998,4]
[313903359,1707797439199,-679.11665402,0.00031998,2]
[313903360,1707797439208,-294.73471076,0.00031998,4]
[313903361,1707797439217,-535.79408158,0.00031998,4]
[313903362,1707797439226,-500.0,0.00031998,4]
[313903363,1707797439235,-1893.7093732,0.00031999,4]
[313903364,1707797439245,-154.93802479,0.00031999,4]
[313903365,1707797439255,-11912.27092072,0.00032,15]
[313903366,1707797439270,-48005.2001,0.00032,15]
[313903367,1707797439285,-32520.28589062,0.00032,15]
[313903368,1707797439297,-37472.14481742,0.00032,15]
[313903370,1707797441627,-3789.9851844,0.00026637,2]
[313903372,1707797441640,-2960.96178046,0.00026637,2]
[313903374,1707797441652,-5961.38673073,0.00026637,2]
[313903375,1707797441663,-6878.52104769,0.00026637,2]
[313903376,1707797441675,-1360.00530174,0.00026637,2]
[313903377,1707797441686,-1466.57927235,0.0003199,3]
[313903443,1707797445226,-2188.50072765,0.0003199,3]
[313903445,1707797445236,-397.75741657,0.00031999,4]
[313903447,1707797445246,-51.63178066,0.00032,2]
[313903480,1707797446459,-167.36821934,0.00032,2]
[313903481,1707797446470,-6425.29185578,0.00032,15]
[313903482,1707797446482,-264.0,0.00032,15]
[313903572,1707798638656,-154.93802479,0.00025433,4]
[313903574,1707798638666,-4624.63,0.00025434,3]
[313903575,1707798638675,-3853.86,0.00025434,3]
[313903576,1707798638685,-1963.02059646,0.00025444,2]
[313903577,1707798638694,-84003.54470705,0.00025444,2]
[313903578,1707798638703,-24900.0,0.00025445,2]
[313903579,1707798638712,-181.49890855,0.00026039,2]
[313903582,1707798638721,-2608.46910477,0.00026104,2]
[313903584,1707798638730,-169.886905,0.00026139,2]
[313903585,1707798638739,-500.0,0.00027397,2]
[313903586,1707798638748,-500.0,0.00027397,2]
[313903587,1707798638757,-500.0,0.00027397,2]
[313903589,1707798638767,-500.0,0.00027639,2]
[313903590,1707798638776,-500.0,0.00027671,2]
[313903591,1707798638786,-387.07758061,0.00027671,2]
[313903592,1707798638794,-500.0,0.00027913,2]
[313903593,1707798638802,-500.0,0.00027945,2]
[313903594,1707798638811,-200.0,0.00027987,15]
[313903595,1707798638821,-500.0,0.00028187,2]
[313903596,1707798638830,-500.0,0.00028219,2]
[313903597,1707798638839,-500.0,0.00028461,2]
[313903598,1707798638847,-500.0,0.00028493,2]
[313903599,1707798638856,-500.0,0.00028735,2]
[313903600,1707798638865,-500.0,0.00028767,2]
[313903601,1707798638874,-981.34824706,0.00028798,2]
[313903602,1707798638883,-642.34728791,0.00028826,2]
[313903603,1707798638893,-454.50790526,0.00028837,2]
[313903604,1707798638902,-124.9033754,0.00029,10]
[313903605,1707798638915,-58.5528709,0.00029,10]
[313903606,1707798638924,-557.15,0.00029009,2]
[313903607,1707798638933,-500.0,0.00029041,2]
[313903608,1707798638943,-500.0,0.00029315,2]
[313903609,1707798638959,-500.0,0.00029589,2]
[313903610,1707798638972,-500.0,0.00029863,2]
[313903611,1707798638984,-3343.77753188,0.0003,2]
[313903612,1707798638997,-268.0,0.0003,2]
[313903613,1707798639008,-244.93876299,0.00030132,4]
[313903614,1707798639020,-154.93802479,0.00030133,4]
[313903615,1707798639033,-1950.45781889,0.00030134,4]
[313903616,1707798639044,-504.40570818,0.00030135,14]
[313903617,1707798639055,-500.0,0.00030136,2]
[313903618,1707798639065,-452.23713408,0.000302,3]
[313903619,1707798639075,-268.07159759,0.0003041,2]
[313903620,1707798639086,-280.0,0.00030786,15]
[313903621,1707798639098,-155.0,0.00030998,2]
[313903622,1707798639111,-154.93802479,0.00031,4]
[313903623,1707798639124,-5000.0,0.00031038,10]
[313903624,1707798639135,-3332.49904288,0.00031678,4]
[313903625,1707798639146,-10174.57049341,0.00031678,4]
[313903626,1707798639157,-556.0,0.0003197,35]
[313903627,1707798639170,-556.0,0.0003198,35]
[313903628,1707798639181,-556.0,0.0003199,35]
[313903629,1707798639192,-177.67534884,0.00031998,4]
[313903630,1707798639203,-351.68072751,0.00031998,4]
[313903631,1707798639214,-155.49505855,0.00031998,4]
[313903632,1707798639225,-247.40081509,0.00031998,4]
[313903633,1707798639235,-11011.54548225,0.00031998,4]
[313903640,1707798641782,-2556.09658286,0.00025433,2]
[313903641,1707798641840,-52.37252191,0.00025433,2]
[313903642,1707798641851,-3211.55,0.0003199,3]
[313903643,1707798641862,-1731.51086624,0.00031998,4]
[313903673,1707798643711,-8256.83120679,0.00031998,4]
[313903675,1707798643722,-235.53651105,0.00031998,4]
[313903676,1707798643732,-651.93131844,0.00031998,4]
[313903677,1707798643741,-194.72306171,0.00031998,4]
[313903678,1707798643751,-6256.0211223,0.00031998,4]
[313903679,1707798643764,-6916.27341714,0.00031998,4]
[313903680,1707798643779,-537.80272664,0.00031998,4]
[313903681,1707798643794,-349.36586964,0.00031998,4]
[313903724,1707798647226,-2479.49194717,0.00031998,4]
[313903767,1707799831779,-1624.49667017,0.00026275,2]
[313903799,1707799841030,-329.7518327,0.00026275,2]
[313903800,1707799841042,-5914.95460012,0.00026275,2]
[313903801,1707799841054,-12068.9873348,0.00026275,2]
[313903802,1707799841064,-4240.19,0.00026276,3]
[313903803,1707799841073,-3533.5,0.00026276,3]
[313903804,1707799841082,-1924.92874771,0.00026276,3]
[313903805,1707799841094,-1019.65125229,0.00026276,3]
[313903806,1707799841103,-981.63485637,0.00026284,2]
[313903807,1707799841113,-154.92253873,0.00026285,4]
[313903808,1707799841122,-6115.08830306,0.00026286,2]
[313903809,1707799841131,-10601.50751096,0.00026286,2]
[313903810,1707799841143,-4986.6,0.00026286,2]
[313903817,1707799842994,-16364.84518779,0.00026286,2]
[313903818,1707799843005,-14471.67,0.00026286,2]
[313903878,1707801031955,-154.92253873,0.00024795,4]
[313903879,1707801031964,-154.92253873,0.00024796,2]
[313903880,1707801031973,-154.92253873,0.00024797,2]
[313903881,1707801031982,-154.92253873,0.00024797,2]
[313903882,1707801031991,-421.27799855,0.00024815,2]
[313904098,1707801043041,-399.0724157,0.00024746,2]
[313904099,1707801043051,-24478.72200145,0.00024815,2]
[313904100,1707801043060,-5195.77860451,0.00025695,2]
[313904101,1707801043069,-766.53439085,0.00026286,2]